fUSD/lending_fUSD_20250809
["ID","MTS","AMOUNT","RATE_DAILY","PERIOD"]
[378121697,1754739064635,-200.0,0.00024658,2]
[378121698,1754739064645,-150.0,0.00024658,2]
[378121699,1754739064654,-150.0,0.00024658,2]
[378121700,1754739064665,-150.0,0.00024658,2]
[378121701,1754739064675,-150.0,0.00024658,2]
[378121702,1754739064684,-150.0,0.00024658,2]
[378121703,1754739064694,-150.0,0.00024658,2]
[378121704,1754739064704,-150.0,0.00024658,2]
[378121705,1754739064714,-155.33900992,0.00024658,2]
[378121706,1754739064723,-150.0,0.00024659,2]
[378121707,1754739064734,-150.0,0.0002466,2]
[378121708,1754739064743,-150.0,0.00024661,2]
[378121709,1754739064754,-152.0,0.00024662,4]
[378121710,1754739064765,-150.0,0.00024662,2]
[378121711,1754739064775,-150.0,0.00024662,2]
[378121712,1754739064786,-150.0,0.00024669,2]
[378121713,1754739064796,-150.0,0.00024672,2]
[378121714,1754739064806,-151.0,0.00024673,7]
[378121715,1754739064816,-151.0,0.00024673,7]
[378121716,1754739064826,-890.583079,0.00024673,7]
[378121717,1754739064835,-890.583079,0.00024673,7]
[378121718,1754739064844,-301.856828,0.00024673,7]
[378121719,1754739064854,-301.856828,0.00024673,7]
[378121720,1754739064864,-150.0,0.00024674,2]
[378121721,1754739064874,-150.0,0.00024675,2]
[378121722,1754739064885,-150.0,0.00024676,2]
[378121723,1754739064895,-150.0,0.00024678,2]
[378121724,1754739064905,-150.0,0.0002468,2]
[378121725,1754739064915,-150.0,0.0002468,2]
[378121726,1754739064927,-150.0,0.0002468,2]
[378121727,1754739064937,-150.0,0.00024682,2]
[378121728,1754739064951,-216.34797559,0.00024682,4]
[378121729,1754739064961,-688.71499987,0.00024682,2]
[378121730,1754739064970,-150.0,0.00024683,2]
[378121731,1754739064980,-3890.01,0.00024685,30]
[378121732,1754739064990,-151.0,0.00024685,7]
[378121733,1754739065000,-151.0,0.00024685,7]
[378121734,1754739065010,-150.0,0.00024685,2]
[378121735,1754739065019,-232.462763,0.00024685,7]
[378121736,1754739065096,-232.462763,0.00024685,7]
[378121737,1754739065106,-767.157838,0.00024685,7]
[378121738,1754739065115,-767.157838,0.00024685,7]
[378121739,1754739065125,-202.775833,0.00024685,7]
[378121740,1754739065135,-202.775833,0.00024685,7]
[378121741,1754739065144,-151.0,0.00024685,7]
[378121742,1754739065155,-150.0,0.00024686,2]
[378121743,1754739065164,-150.0,0.00024689,2]
[378121744,1754739065174,-150.0,0.00024693,2]
[378121745,1754739065183,-150.0,0.00024699,2]
[378121746,1754739065192,-150.0,0.00024699,2]
[378121747,1754739065202,-150.0,0.000247,2]
[378121748,1754739065212,-842.55686218,0.000247,7]
[378121749,1754739065221,-6215.60629272,0.000247,2]
[378121750,1754739065231,-457.70825493,0.000247,7]
[378121751,1754739065241,-1000.0,0.000247,2]
[378121752,1754739065250,-150.0,0.00024703,2]
[378121753,1754739065260,-150.0,0.00024706,2]
[378121754,1754739065269,-150.0,0.00024707,2]
[378121755,1754739065279,-150.0,0.00024708,2]
[378121756,1754739065288,-150.0,0.00024711,2]
[378121757,1754739065299,-150.0,0.00024712,2]
[378121758,1754739065309,-150.0,0.00024713,2]
[378121759,1754739065319,-150.0,0.00024715,2]
[378121760,1754739065328,-150.0,0.00024716,2]
[378121761,1754739065338,-150.0,0.0002472,2]
[378121762,1754739065349,-1000.0,0.00024721,2]
[378121763,1754739065359,-150.0,0.00024722,2]
[378121764,1754739065368,-150.0,0.00024725,2]
[378121765,1754739065378,-150.0,0.0002473,2]
[378121766,1754739065387,-150.0,0.00024732,2]
[378121767,1754739065397,-521.01471225,0.00024733,2]
[378121768,1754739065406,-160.0,0.00024733,2]
[378121769,1754739065415,-257.91778498,0.00024733,2]
[378121770,1754739065425,-1776.0,0.00024735,3]
[378121771,1754739065434,-150.0,0.00024737,2]
[378121772,1754739065445,-150.0,0.00024737,2]
[378121773,1754739065454,-154.06404217,0.00024738,2]
[378121774,1754739065464,-150.0,0.0002474,2]
[378121775,1754739065473,-150.0,0.00024741,2]
[378121776,1754739065483,-1000.0,0.00024742,2]
[378121777,1754739065492,-150.0,0.00024744,2]
[378121778,1754739065502,-150.0,0.00024745,2]
[378121779,1754739065511,-150.0,0.0002475,2]
[378121780,1754739065520,-150.0,0.00024754,2]
[378121781,1754739065530,-150.0,0.00024756,2]
[378121782,1754739065539,-150.0,0.00024761,2]
[378121783,1754739065548,-150.0,0.00024761,2]
[378121784,1754739065558,-150.0,0.00024762,2]
[378121785,1754739065567,-150.0,0.00024763,2]
[378121786,1754739065577,-1000.0,0.00024764,2]
[378121787,1754739065587,-150.0,0.00024765,2]
[378121788,1754739065597,-150.0,0.00024768,2]
[378121789,1754739065606,-150.0,0.00024769,2]
[378121790,1754739065617,-150.0,0.0002477,2]
[378121791,1754739065626,-150.0,0.00024772,2]
[378121792,1754739065635,-500.0,0.00024773,2]
[378121793,1754739065645,-609.85862808,0.00024775,2]
[378121794,1754739065654,-150.0,0.00024777,2]
[378121795,1754739065664,-1000.0,0.00024777,2]
[378121796,1754739065674,-150.0,0.0002478,2]
[378121797,1754739065683,-500.0,0.00024781,2]
[378121798,1754739065693,-1000.0,0.00024781,2]
[378121799,1754739065704,-150.0,0.00024781,2]
[378121800,1754739065714,-150.0,0.00024781,2]
[378121801,1754739065723,-151.0,0.00024782,7]
[378121802,1754739065733,-151.0,0.00024782,7]
[378121803,1754739065743,-156.984356,0.00024782,7]
[378121804,1754739065752,-156.984356,0.00024782,7]
[378121805,1754739065762,-151.0,0.00024782,7]
[378121806,1754739065771,-151.0,0.00024782,7]
[378121807,1754739065781,-151.0,0.00024782,7]
[378121808,1754739065791,-151.0,0.00024782,7]
[378121809,1754739065800,-1564.422077,0.00024782,7]
[378121810,1754739065810,-1564.422077,0.00024782,7]
[378121811,1754739065819,-151.0,0.00024782,7]
[378121812,1754739065829,-360.012313,0.00024782,7]
[378121813,1754739065839,-264.250948,0.00024782,7]
[378121814,1754739065848,-360.012313,0.00024782,7]
[378121815,1754739065857,-1799.965627,0.00024782,7]
[378121816,1754739065867,-151.0,0.00024782,7]
[378121817,1754739065877,-1799.965627,0.00024782,7]
[378121818,1754739065888,-187.791611,0.00024782,7]
[378121819,1754739065897,-187.791611,0.00024782,7]
[378121820,1754739065907,-151.0,0.00024782,7]
[378121821,1754739065916,-151.0,0.00024782,7]
[378121822,1754739065925,-151.0,0.00024782,7]
[378121823,1754739065935,-151.0,0.00024782,7]
[378121824,1754739065948,-151.0,0.00024782,7]
[378121825,1754739065957,-151.0,0.00024782,7]
[378121826,1754739065967,-204.635397,0.00024782,7]
[378121827,1754739065976,-151.0,0.00024782,7]
[378121828,1754739065986,-952.985602,0.00024782,7]
[378121829,1754739065995,-952.985602,0.00024782,7]
[378121830,1754739066005,-101586.8020227,0.00024782,2]
[378121831,1754739066015,-151.0,0.00024782,7]
[378121832,1754739066029,-222.540248,0.00024782,7]
[378121833,1754739066039,-4098.6838359,0.00024782,2]
[378121834,1754739066049,-1236.494303,0.00024782,7]
[378121835,1754739066058,-1236.494303,0.00024782,7]
[378121836,1754739066069,-150.0,0.00024787,2]
[378121837,1754739066080,-20238.02070452,0.00024788,2]
[378121838,1754739066090,-310.07462867,0.00024789,2]
[378121839,1754739066101,-465.34844308,0.0002479,2]
[378121840,1754739066111,-150.0,0.0002479,2]
[378121841,1754739066121,-150.0,0.0002479,2]
[378121842,1754739066132,-151.0,0.00024791,7]
[378121843,1754739066141,-151.0,0.00024791,7]
[378121844,1754739066150,-151.0,0.00024791,7]
[378121845,1754739066159,-230.40374371,0.00024791,2]
[378121846,1754739066169,-151.0,0.00024791,7]
[378121847,1754739066178,-151.0,0.00024791,7]
[378121848,1754739066188,-151.0,0.00024791,7]
[378121849,1754739066197,-151.0,0.00024791,7]
[378121850,1754739066207,-151.0,0.00024791,7]
[378121851,1754739066216,-151.0,0.00024791,7]
[378121852,1754739066225,-151.0,0.00024791,7]
[378121853,1754739066234,-151.0,0.00024791,7]
[378121854,1754739066243,-160.0,0.00024791,7]
[378121855,1754739066253,-151.0,0.00024791,7]
[378121856,1754739066262,-151.0,0.00024791,7]
[378121857,1754739066272,-151.0,0.00024791,7]
[378121858,1754739066281,-151.0,0.00024791,7]
[378121859,1754739066290,-151.0,0.00024791,7]
[378121860,1754739066300,-151.0,0.00024791,7]
[378121861,1754739066309,-1215.0,0.00024791,2]
[378121862,1754739066318,-1215.0,0.00024791,2]
[378121863,1754739066327,-1215.0,0.00024791,2]
[378121864,1754739066337,-949.20145746,0.00024791,2]
[378121865,1754739066346,-151.0,0.00024791,7]
[378121866,1754739066356,-151.0,0.00024791,7]
[378121867,1754739066367,-150.0,0.00024791,2]
[378121868,1754739066376,-150.0,0.00024791,2]
[378121869,1754739066386,-1000.0,0.00024792,2]
[378121870,1754739066395,-150.0,0.00024792,2]
[378121871,1754739066404,-1000.0,0.00024796,2]
[378121872,1754739066414,-300.0,0.00024799,10]
[378121873,1754739066426,-666.0,0.00024799,2]
[378121874,1754739066437,-235.573636,0.00024799,7]
[378121875,1754739066447,-235.573636,0.00024799,7]
[378121876,1754739066456,-164.115116,0.00024799,7]
[378121877,1754739066465,-164.115116,0.00024799,7]
[378121878,1754739066474,-400.0,0.00024799,2]
[378121879,1754739066483,-500.0,0.00024799,2]
[378121880,1754739066493,-500.0,0.00024799,2]
[378121881,1754739066502,-818.96,0.00024799,2]
[378121882,1754739066511,-818.96,0.00024799,2]
[378121883,1754739066520,-270.9568,0.00024799,7]
[378121884,1754739066530,-270.9568,0.00024799,7]
[378121885,1754739066540,-771.05,0.00024799,2]
[378121886,1754739066549,-771.05,0.00024799,2]
[378121887,1754739066559,-150.0,0.00024799,2]
[378121888,1754739066569,-151.0,0.000248,7]
[378121889,1754739066578,-251.688494,0.000248,7]
[378121890,1754739066588,-151.0,0.000248,7]
[378121891,1754739066599,-151.0,0.000248,7]
[378121892,1754739066610,-151.0,0.000248,7]
[378121893,1754739066620,-151.0,0.000248,7]
[378121894,1754739066630,-151.0,0.000248,7]
[378121895,1754739066640,-151.0,0.000248,7]
[378121896,1754739066650,-151.0,0.000248,7]
[378121897,1754739066660,-151.0,0.000248,7]
[378121898,1754739066670,-151.0,0.000248,7]
[378121899,1754739066681,-197.764437,0.000248,7]
[378121900,1754739066692,-294.594516,0.000248,7]
[378121901,1754739066702,-151.0,0.000248,7]
[378121902,1754739066714,-151.0,0.000248,7]
[378121903,1754739066724,-151.0,0.000248,7]
[378121904,1754739066733,-156.984356,0.000248,7]
[378121905,1754739066743,-156.984356,0.000248,7]
[378121906,1754739066754,-151.0,0.000248,7]
[378121907,1754739066765,-151.0,0.000248,7]
[378121908,1754739066774,-151.0,0.000248,7]
[378121909,1754739066783,-151.0,0.000248,7]
[378121910,1754739066793,-151.0,0.000248,7]
[378121911,1754739066802,-624.708113,0.000248,7]
[378121912,1754739066812,-302.0,0.000248,2]
[378121913,1754739066825,-151.0,0.000248,7]
[378121914,1754739066835,-232.462763,0.000248,7]
[378121915,1754739066845,-232.462763,0.000248,7]
[378121916,1754739066855,-890.583079,0.000248,7]
[378121917,1754739066864,-1564.422077,0.000248,7]
[378121918,1754739066874,-1564.422077,0.000248,7]
[378121919,1754739066884,-890.583079,0.000248,7]
[378121920,1754739066894,-151.0,0.000248,7]
[378121921,1754739066904,-151.0,0.000248,7]
[378121922,1754739066913,-151.0,0.000248,7]
[378121923,1754739066922,-151.0,0.000248,7]
[378121924,1754739066932,-301.856828,0.000248,7]
[378121925,1754739066943,-151.0,0.000248,7]
[378121926,1754739066953,-301.856828,0.000248,7]
[378121927,1754739066963,-767.157838,0.000248,7]
[378121928,1754739066973,-243.737641,0.000248,7]
[378121929,1754739066982,-360.012313,0.000248,7]
[378121930,1754739066993,-767.157838,0.000248,7]
[378121931,1754739067003,-208.029723,0.000248,7]
[378121932,1754739067013,-360.012313,0.000248,7]
[378121933,1754739067024,-1799.965627,0.000248,7]
[378121934,1754739067034,-208.029723,0.000248,7]
[378121935,1754739067044,-151.0,0.000248,7]
[378121936,1754739067054,-1799.965627,0.000248,7]
[378121937,1754739067064,-202.775833,0.000248,7]
[378121938,1754739067074,-187.791611,0.000248,7]
[378121939,1754739067084,-187.791611,0.000248,7]
[378121940,1754739067093,-202.775833,0.000248,7]
[378121941,1754739067103,-152.614647,0.000248,7]
[378121942,1754739067112,-151.526916,0.000248,7]
[378121943,1754739067122,-151.0,0.000248,7]
[378121944,1754739067132,-151.0,0.000248,7]
[378121945,1754739067142,-151.0,0.000248,7]
[378121946,1754739067151,-212.147185,0.000248,7]
[378121947,1754739067162,-842.55686218,0.000248,7]
[378121948,1754739067172,-3000.0,0.000248,9]
[378121949,1754739067182,-952.985602,0.000248,7]
[378121950,1754739067192,-952.985602,0.000248,7]
[378121951,1754739067202,-600869.381418,0.000248,2]
[378121952,1754739067212,-457.70825493,0.000248,7]
[378121953,1754739067222,-151.0,0.000248,7]
[378121954,1754739067232,-200.0,0.000248,2]
[378121955,1754739067242,-1236.494303,0.000248,7]
[378121956,1754739067252,-1236.494303,0.000248,7]
[378121957,1754739067261,-818.96,0.00024813,2]
[378121958,1754739067271,-771.05,0.00024813,2]
[378121959,1754739067280,-4174.63827699,0.00024814,2]
[378121960,1754739067290,-162.16,0.00024814,2]
[378121961,1754739067300,-151.64,0.00024814,2]
[378121962,1754739067310,-152.02,0.00024814,2]
[378121963,1754739067320,-3402.70786623,0.00024831,2]
[378121964,1754739067330,-182.02069468,0.00024831,2]
[378121965,1754739067340,-218.08754016,0.00024849,30]
[378121966,1754739067350,-500.0,0.00024877,2]
[378121967,1754739067360,-500.0,0.00024882,2]
[378121968,1754739067372,-104355.970136,0.00024883,2]
[378121969,1754739067382,-4210.4104023,0.00024883,2]
[378121970,1754739067392,-56183.51487082,0.00024883,2]
[378121971,1754739067402,-818.96,0.00024886,2]
[378121972,1754739067412,-771.05,0.00024886,2]
[378121973,1754739067422,-151.0,0.00024887,7]
[378121974,1754739067431,-157.347449,0.00024887,7]
[378121975,1754739067441,-151.0,0.00024887,7]
[378121976,1754739067451,-235.573636,0.00024887,7]
[378121977,1754739067460,-235.573636,0.00024887,7]
[378121978,1754739067470,-151.0,0.00024887,7]
[378121979,1754739067479,-164.115116,0.00024887,7]
[378121980,1754739067489,-164.115116,0.00024887,7]
[378121981,1754739067499,-151.0,0.00024887,7]
[378121982,1754739067509,-151.0,0.00024887,7]
[378121983,1754739067518,-270.9568,0.00024887,7]
[378121984,1754739067528,-270.9568,0.00024887,7]
[378121985,1754739067538,-2110.0,0.00024889,2]
[378121986,1754739067547,-155.529712,0.0002489,7]
[378121988,1754739067557,-151.0,0.0002489,7]
[378121989,1754739067566,-151.0,0.0002489,7]
[378121990,1754739067576,-151.0,0.00024899,7]
[378121991,1754739067586,-151.0,0.00024899,7]
[378121992,1754739067596,-180.04,0.00024899,2]
[378121993,1754739067606,-818.96,0.00024899,2]
[378121994,1754739067616,-818.96,0.00024899,2]
[378121995,1754739067626,-818.96,0.00024899,2]
[378121996,1754739067636,-818.96,0.00024899,2]
[378121997,1754739067646,-819.19,0.00024899,2]
[378121998,1754739067657,-300.0,0.00024899,10]
[378121999,1754739067667,-666.0,0.00024899,2]
[378122000,1754739067677,-155.398552,0.00024899,7]
[378122001,1754739067686,-151.0,0.00024899,7]
[378122002,1754739067696,-771.05,0.00024899,2]
[378122003,1754739067705,-771.05,0.00024899,2]
[378122004,1754739067715,-771.05,0.00024899,2]
[378122005,1754739067725,-771.05,0.00024899,2]
[378122006,1754739067735,-771.28729578,0.00024899,2]
[378122007,1754739067745,-259.612482,0.00024899,7]
[378122008,1754739067755,-952.985602,0.00024899,7]
[378122009,1754739067766,-952.985602,0.00024899,7]
[378122010,1754739067776,-151.0,0.00024899,7]
[378122011,1754739067786,-1236.494303,0.00024899,7]
[378122012,1754739067795,-1236.494303,0.00024899,7]
[378122013,1754739067806,-211.66152043,0.000249,7]
[378122014,1754739067815,-151.0,0.000249,7]
[378122015,1754739067825,-151.0,0.000249,7]
[378122016,1754739067834,-151.0,0.000249,7]
[378122017,1754739067844,-139.992485,0.000249,7]
[378122018,1754739068466,-11.007515,0.000249,7]
[378122019,1754739068476,-151.0,0.000249,7]
[378122020,1754739068486,-151.0,0.000249,7]
[378122021,1754739068496,-151.0,0.000249,7]
[378122022,1754739068506,-151.0,0.000249,7]
[378122023,1754739068759,-151.0,0.000249,7]
[378122024,1754739068770,-151.0,0.000249,7]
[378122025,1754739068782,-151.0,0.000249,7]
[378122026,1754739068792,-151.0,0.000249,7]
[378122027,1754739068801,-151.0,0.000249,7]
[378122028,1754739068811,-151.0,0.000249,7]
[378122029,1754739068821,-151.0,0.000249,7]
[378122030,1754739068831,-151.0,0.000249,7]
[378122031,1754739068841,-151.0,0.000249,7]
[378122032,1754739068852,-151.0,0.000249,7]
[378122033,1754739068862,-151.0,0.000249,7]
[378122034,1754739068872,-151.0,0.000249,7]
[378122035,1754739068882,-151.0,0.000249,7]
[378122036,1754739068892,-210.245486,0.000249,7]
[378122037,1754739068902,-151.0,0.000249,7]
[378122038,1754739068912,-151.0,0.000249,7]
[378122039,1754739068922,-235.573636,0.000249,7]
[378122040,1754739068932,-235.573636,0.000249,7]
[378122041,1754739068943,-164.115116,0.000249,7]
[378122042,1754739068953,-164.115116,0.000249,7]
[378122043,1754739068963,-151.0,0.000249,7]
[378122044,1754739068972,-212.733036,0.000249,7]
[378122045,1754739068982,-156.984356,0.000249,7]
[378122046,1754739068993,-151.0,0.000249,7]
[378122047,1754739069002,-156.984356,0.000249,7]
[378122048,1754739069011,-151.0,0.000249,7]
[378122049,1754739069022,-151.0,0.000249,7]
[378122050,1754739069031,-151.0,0.000249,7]
[378122051,1754739069041,-151.0,0.000249,7]
[378122052,1754739069050,-151.0,0.000249,7]
[378122053,1754739069059,-151.0,0.000249,7]
[378122054,1754739069070,-624.708113,0.000249,7]
[378122055,1754739069080,-151.0,0.000249,7]
[378122056,1754739069090,-151.0,0.000249,7]
[378122057,1754739069099,-232.462763,0.000249,7]
[378122058,1754739069109,-232.462763,0.000249,7]
[378122059,1754739069118,-232.462763,0.000249,7]
[378122060,1754739069128,-232.462763,0.000249,7]
[378122061,1754739069138,-270.9568,0.000249,7]
[378122062,1754739069147,-890.583079,0.000249,7]
[378122063,1754739069156,-270.9568,0.000249,7]
[378122064,1754739069165,-1564.422077,0.000249,7]
[378122065,1754739069174,-1564.422077,0.000249,7]
[378122066,1754739069183,-890.583079,0.000249,7]
[378122067,1754739069193,-151.0,0.000249,7]
[378122068,1754739069203,-151.0,0.000249,7]
[378122069,1754739069212,-151.0,0.000249,7]
[378122070,1754739069221,-151.0,0.000249,7]
[378122071,1754739069230,-151.0,0.000249,7]
[378122072,1754739069239,-151.0,0.000249,7]
[378122073,1754739069251,-151.0,0.000249,7]
[378122074,1754739069262,-301.856828,0.000249,7]
[378122075,1754739069273,-151.0,0.000249,7]
[378122076,1754739069283,-151.0,0.000249,7]
[378122077,1754739069292,-301.856828,0.000249,7]
[378122078,1754739069302,-151.0,0.000249,7]
[378122079,1754739069312,-767.157838,0.000249,7]
[378122080,1754739069323,-767.157838,0.000249,7]
[378122081,1754739069333,-360.012313,0.000249,7]
[378122082,1754739069343,-767.157838,0.000249,7]
[378122083,1754739069352,-208.029723,0.000249,7]
[378122084,1754739069362,-767.157838,0.000249,7]
[378122085,1754739069373,-208.029723,0.000249,7]
[378122086,1754739069382,-360.012313,0.000249,7]
[378122087,1754739069392,-1799.965627,0.000249,7]
[378122088,1754739069402,-208.029723,0.000249,7]
[378122089,1754739069414,-208.029723,0.000249,7]
[378122090,1754739069424,-151.0,0.000249,7]
[378122091,1754739069434,-151.0,0.000249,7]
[378122092,1754739069444,-1799.965627,0.000249,7]
[378122093,1754739069455,-202.775833,0.000249,7]
[378122094,1754739069464,-202.775833,0.000249,7]
[378122095,1754739069473,-187.791611,0.000249,7]
[378122096,1754739069482,-187.791611,0.000249,7]
[378122097,1754739069492,-202.775833,0.000249,7]
[378122098,1754739069501,-202.775833,0.000249,7]
[378122099,1754739069511,-151.0,0.000249,7]
[378122100,1754739069522,-600.0,0.000249,9]
[378122101,1754739069531,-952.985602,0.000249,7]
[378122102,1754739069541,-952.985602,0.000249,7]
[378122103,1754739069550,-264849.737398,0.000249,2]
[378122104,1754739069559,-151.0,0.000249,7]
[378122105,1754739069569,-1236.494303,0.000249,7]
[378122106,1754739069578,-1236.494303,0.000249,7]
[378122107,1754739069587,-206.5,0.00024903,2]
[378122108,1754739069596,-151.0,0.00024914,7]
[378122109,1754739069607,-151.0,0.00024914,7]
[378122110,1754739069616,-151.0,0.00024914,7]
[378122111,1754739069626,-151.0,0.00024914,7]
[378122112,1754739069635,-151.0,0.00024914,7]
[378122113,1754739069644,-151.0,0.00024914,7]
[378122114,1754739069655,-151.0,0.00024914,7]
[378122115,1754739069664,-151.0,0.00024914,7]
[378122116,1754739069674,-167.139468,0.00024914,7]
[378122117,1754739069685,-107125.1382492,0.00024914,2]
[378122118,1754739069695,-4322.1369688,0.00024914,2]
[378122119,1754739069705,-743.49120928,0.00024921,2]
[378122120,1754739069714,-300.0,0.0002493,10]
[378122121,1754739069723,-666.0,0.0002493,2]
[378122122,1754739069733,-424.0825,0.0002493,2]
[378122123,1754739069743,-151.0,0.00024931,7]
[378122124,1754739069753,-151.0,0.00024931,7]
[378122125,1754739069764,-151.0,0.00024931,7]
[378122126,1754739069773,-151.0,0.00024931,7]
[378122127,1754739069782,-151.0,0.00024931,7]
[378122128,1754739069792,-151.0,0.00024931,7]
[378122129,1754739069802,-151.222044,0.00024931,7]
[378122130,1754739069811,-235.963867,0.00024931,7]
[378122131,1754739069822,-284.192591,0.00024931,7]
[378122132,1754739069832,-151.0,0.00024931,7]
[378122133,1754739069843,-151.0,0.00024931,7]
[378122134,1754739069853,-151.0,0.00024931,7]
[378122135,1754739069862,-151.0,0.00024931,7]
[378122136,1754739069873,-188.415182,0.00024931,7]
[378122137,1754739069882,-151.0,0.00024931,7]
[378122138,1754739069891,-151.0,0.00024931,7]
[378122139,1754739069900,-190.200818,0.00024931,7]
[378122140,1754739069909,-151.0,0.00024931,7]
[378122141,1754739069919,-151.0,0.00024931,7]
[378122142,1754739069928,-151.0,0.00024931,7]
[378122143,1754739069937,-151.0,0.00024931,7]
[378122144,1754739069951,-151.0,0.00024931,7]
[378122145,1754739069961,-151.0,0.00024931,7]
[378122146,1754739069970,-151.0,0.00024931,7]
[378122147,1754739069979,-151.0,0.00024931,7]
[378122148,1754739069990,-2523.950152,0.00024931,2]
[378122149,1754739070000,-151.0,0.00024931,7]
[378122150,1754739070009,-162.336177,0.00024931,7]
[378122151,1754739070020,-2371.007827,0.00024931,2]
[378122152,1754739070030,-190.749343,0.00024931,2]
[378122153,1754739070040,-152.78879,0.00024931,2]
[378122154,1754739070049,-171.282303,0.00024931,7]
[378122155,1754739070059,-400.0,0.00024931,2]
[378122156,1754739070069,-400.0,0.00024931,2]
[378122157,1754739070078,-400.0,0.00024931,2]
[378122158,1754739070088,-400.0,0.00024931,2]
[378122159,1754739070097,-402.25856062,0.00024931,2]
[378122160,1754739070108,-460.67866527,0.00024931,2]
[378122161,1754739070117,-404.94556351,0.00024931,2]
[378122162,1754739070127,-404.04176677,0.00024931,2]
[378122163,1754739070137,-400.0,0.00024931,2]
[378122164,1754739070148,-400.0,0.00024931,2]
[378122165,1754739070157,-151.0,0.00024931,7]
[378122166,1754739070166,-400.0,0.00024931,2]
[378122167,1754739070176,-151.0,0.00024931,7]
[378122168,1754739070186,-400.0,0.00024931,2]
[378122169,1754739070197,-400.0,0.00024931,2]
[378122170,1754739070211,-400.0,0.00024931,2]
[378122171,1754739070220,-400.0,0.00024931,2]
[378122172,1754739070231,-196.51616894,0.00024931,2]
[378122173,1754739070240,-405.62117659,0.00024931,2]
[378122174,1754739070249,-400.0,0.00024931,2]
[378122175,1754739070258,-400.0,0.00024931,2]
[378122176,1754739070268,-401.95962715,0.00024931,2]
[378122177,1754739070277,-401.58463382,0.00024931,2]
[378122178,1754739070287,-400.0,0.00024931,2]
[378122179,1754739070298,-400.0,0.00024931,2]
[378122180,1754739070308,-151.0,0.00024931,7]
[378122181,1754739070318,-151.0,0.00024931,7]
[378122182,1754739070328,-405.03355926,0.00024931,2]
[378122183,1754739070337,-235.573636,0.00024931,7]
[378122184,1754739070347,-235.573636,0.00024931,7]
[378122185,1754739070357,-235.573636,0.00024931,7]
[378122186,1754739070367,-400.0,0.00024931,2]
[378122187,1754739070376,-400.0,0.00024931,2]
[378122188,1754739070388,-235.573636,0.00024931,7]
[378122189,1754739070397,-235.573636,0.00024931,7]
[378122190,1754739070408,-400.0,0.00024931,2]
[378122191,1754739070417,-235.573636,0.00024931,7]
[378122192,1754739070427,-400.0,0.00024931,2]
[378122193,1754739070438,-401.22005606,0.00024931,2]
[378122194,1754739070448,-400.0,0.00024931,2]
[378122195,1754739070457,-400.0,0.00024931,2]
[378122196,1754739070468,-400.0,0.00024931,2]
[378122197,1754739070488,-400.0,0.00024931,2]